[Event "Chess Festival Groningen 2023 | A"]
[Site "Groningen, Netherlands"]
[Date "2023.12.24"]
[Round "4.4"]
[White "Tiviakov, Sergei"]
[Black "Maatman, Nick"]
[Result "1/2-1/2"]
[TimeControl "90min/40moves + 30min + 30sec/move"]
[WhiteElo "2536"]
[BlackElo "2371"]

1. e4 {[%clk 01:30:56]} {[%emt 00:00:03]} e5 {[%clk 01:30:49]} {[%emt
00:00:11]} 2. Nf3 {[%clk 01:31:18]} {[%emt 00:00:09]} Nc6 {[%clk 01:31:15]}
{[%emt 00:00:04]} 3. Bb5 {[%clk 01:28:25]} {[%emt 00:03:23]} Nf6 {[%clk
01:31:39]} {[%emt 00:00:06]} 4. Qe2 {[%clk 01:28:47]} {[%emt 00:00:08]} a6
{[%clk 01:30:45]} {[%emt 00:01:25]} 5. Bxc6 {[%clk 01:24:59]} {[%emt 00:04:18]}
dxc6 {[%clk 01:31:06]} {[%emt 00:00:08]} 6. O-O {[%clk 01:22:16]} {[%emt
00:03:13]} Qe7 {[%clk 01:31:24]} {[%emt 00:00:12]} 7. b3 {[%clk 01:19:22]}
{[%emt 00:03:25]} Bg4 {[%clk 01:26:56]} {[%emt 00:04:57]} 8. Bb2 {[%clk
01:17:51]} {[%emt 00:02:02]} Nd7 {[%clk 01:25:29]} {[%emt 00:01:56]} 9. d3
{[%clk 01:17:36]} {[%emt 00:00:45]} O-O-O {[%clk 01:21:09]} {[%emt 00:04:50]}
10. Nbd2 {[%clk 01:17:24]} {[%emt 00:00:43]} Kb8 {[%clk 01:11:00]} {[%emt
00:10:39]} 11. Qe3 {[%clk 01:08:10]} {[%emt 00:09:43]} f6 {[%clk 01:05:47]}
{[%emt 00:05:43]} 12. d4 {[%clk 01:03:51]} {[%emt 00:04:49]} exd4 {[%clk
01:03:12]} {[%emt 00:03:04]} 13. Nxd4 {[%clk 01:04:11]} {[%emt 00:00:10]} c5
{[%clk 01:03:09]} {[%emt 00:00:33]} 14. N4f3 {[%clk 01:03:41]} {[%emt
00:01:00]} Rg8 {[%clk 00:56:05]} {[%emt 00:07:34]} 15. Rfe1 {[%clk 01:02:49]}
{[%emt 00:01:22]} g5 {[%clk 00:52:35]} {[%emt 00:04:00]} 16. Rad1 {[%clk
00:44:18]} {[%emt 00:19:00]} Re8 {[%clk 00:44:55]} {[%emt 00:08:10]} 17. Nc4
{[%clk 00:34:18]} {[%emt 00:10:30]} Be6 {[%clk 00:41:22]} {[%emt 00:04:02]} 18.
Na5 {[%clk 00:29:18]} {[%emt 00:05:31]} g4 {[%clk 00:32:03]} {[%emt 00:09:48]}
19. Nh4 {[%clk 00:27:57]} {[%emt 00:01:52]} Qf7 {[%clk 00:28:43]} {[%emt
00:03:50]} 20. g3 {[%clk 00:26:36]} {[%emt 00:01:50]} Bd6 {[%clk 00:26:23]}
{[%emt 00:02:50]} 21. a3 {[%clk 00:22:44]} {[%emt 00:04:23]} Ne5 {[%clk
00:20:16]} {[%emt 00:06:36]} 22. Bxe5 {[%clk 00:22:22]} {[%emt 00:00:51]} fxe5
{[%clk 00:18:51]} {[%emt 00:01:55]} 23. Nf5 {[%clk 00:20:22]} {[%emt 00:02:31]}
Bxf5 {[%clk 00:18:24]} {[%emt 00:00:57]} 24. exf5 {[%clk 00:20:49]} {[%emt
00:00:03]} Qxf5 {[%clk 00:18:48]} {[%emt 00:00:06]} 25. Nc4 {[%clk 00:20:37]}
{[%emt 00:00:42]} Rg6 {[%clk 00:16:54]} {[%emt 00:02:23]} 26. Qe4 {[%clk
00:17:18]} {[%emt 00:03:50]} Qxe4 {[%clk 00:16:23]} {[%emt 00:01:00]} 27. Rxe4
{[%clk 00:17:43]} {[%emt 00:00:05]} b5 {[%clk 00:16:01]} {[%emt 00:00:52]} 28.
Ne3 {[%clk 00:18:09]} {[%emt 00:00:05]} h5 {[%clk 00:16:20]} {[%emt 00:00:10]}
29. a4 {[%clk 00:18:31]} {[%emt 00:00:08]} Kb7 {[%clk 00:15:36]} {[%emt
00:01:14]} 30. axb5 {[%clk 00:10:08]} {[%emt 00:08:53]} axb5 {[%clk 00:16:04]}
{[%emt 00:00:02]} 31. Rd2 {[%clk 00:10:27]} {[%emt 00:00:11]} Kc6 {[%clk
00:13:00]} {[%emt 00:03:33]} 32. h3 {[%clk 00:10:09]} {[%emt 00:00:48]} gxh3
{[%clk 00:11:56]} {[%emt 00:01:34]} 33. Kh2 {[%clk 00:10:36]} {[%emt 00:00:03]}
Ra8 {[%clk 00:10:55]} {[%emt 00:01:30]} 34. Kxh3 {[%clk 00:11:00]} {[%emt
00:00:06]} Ra1 {[%clk 00:10:57]} {[%emt 00:00:28]} 35. Kg2 {[%clk 00:11:14]}
{[%emt 00:00:16]} Rg5 {[%clk 00:08:47]} {[%emt 00:02:40]} 36. Rh4 {[%clk
00:10:58]} {[%emt 00:00:47]} Re1 {[%clk 00:06:13]} {[%emt 00:03:03]} 37. Kf3
{[%clk 00:10:56]} {[%emt 00:00:32]} Kd7 {[%clk 00:05:02]} {[%emt 00:01:41]} 38.
Rd1 {[%clk 00:05:57]} {[%emt 00:05:30]} Rxd1 {[%clk 00:05:28]} {[%emt
00:00:04]} 39. Nxd1 {[%clk 00:06:24]} {[%emt 00:00:03]} Ke6 {[%clk 00:03:59]}
{[%emt 00:01:59]} 40. Ne3 {[%clk 00:03:32]} {[%emt 00:03:22]} c6 {[%clk
00:02:21]} {[%emt 00:02:08]} 41. Ke4 {[%clk 00:12:31]} {[%emt 00:21:32]} c4
{[%clk 00:20:16]} {[%emt 00:12:35]} 42. bxc4 {[%clk 00:12:52]} {[%emt
00:00:09]} Bc5 {[%clk 00:19:36]} {[%emt 00:01:10]} 43. cxb5 {[%clk 00:11:33]}
{[%emt 00:01:50]} cxb5 {[%clk 00:18:51]} {[%emt 00:01:15]} 44. c3 {[%clk
00:10:28]} {[%emt 00:01:35]} Bxe3 {[%clk 00:14:48]} {[%emt 00:04:32]} 45. Kxe3
{[%clk 00:10:52]} {[%emt 00:00:06]} Kd5 {[%clk 00:15:13]} {[%emt 00:00:05]} 46.
Kd3 {[%clk 00:11:18]} {[%emt 00:00:05]} Rf5 {[%clk 00:13:24]} {[%emt 00:02:19]}
47. Ke3 {[%clk 00:11:45]} {[%emt 00:00:02]} Rg5 {[%clk 00:13:19]} {[%emt
00:00:36]} 1/2-1/2

[Event "Chess Festival Groningen 2023 | A"]
[Site "Groningen, Netherlands"]
[Date "2023.12.24"]
[Round "4.5"]
[White "Reinderman, Dimitri"]
[Black "De Boer, Eelke"]
[Result "1-0"]
[TimeControl "90min/40moves + 30min + 30sec/move"]
[WhiteElo "2580"]
[BlackElo "2346"]

1. c4 {[%clk 01:30:59]} {[%emt 00:00:01]} Nf6 {[%clk 01:30:51]} {[%emt
00:00:09]} 2. Nf3 {[%clk 01:31:19]} {[%emt 00:00:10]} e6 {[%clk 01:31:09]}
{[%emt 00:00:12]} 3. g3 {[%clk 01:31:40]} {[%emt 00:00:09]} d5 {[%clk
01:31:09]} {[%emt 00:00:30]} 4. Bg2 {[%clk 01:32:05]} {[%emt 00:00:05]} d4
{[%clk 01:20:42]} {[%emt 00:10:56]} 5. O-O {[%clk 01:32:09]} {[%emt 00:00:27]}
Nc6 {[%clk 01:20:50]} {[%emt 00:00:22]} 6. d3 {[%clk 01:32:02]} {[%emt
00:00:37]} Bc5 {[%clk 01:18:03]} {[%emt 00:03:16]} 7. Nbd2 {[%clk 01:31:40]}
{[%emt 00:00:54]} O-O {[%clk 01:14:53]} {[%emt 00:03:39]} 8. Nb3 {[%clk
01:31:17]} {[%emt 00:00:53]} Be7 {[%clk 01:15:04]} {[%emt 00:00:18]} 9. e3
{[%clk 01:30:47]} {[%emt 00:01:01]} e5 {[%clk 01:14:07]} {[%emt 00:01:27]} 10.
exd4 {[%clk 01:29:17]} {[%emt 00:02:00]} exd4 {[%clk 01:14:28]} {[%emt
00:00:08]} 11. Re1 {[%clk 01:29:17]} {[%emt 00:00:30]} Re8 {[%clk 01:01:11]}
{[%emt 00:13:47]} 12. Bf4 {[%clk 01:27:06]} {[%emt 00:02:41]} Nh5 {[%clk
00:54:33]} {[%emt 00:07:08]} 13. Bd2 {[%clk 01:23:12]} {[%emt 00:04:24]} g6
{[%clk 00:47:21]} {[%emt 00:07:41]} 14. Ne5 {[%clk 01:18:58]} {[%emt 00:04:45]}
Nxe5 {[%clk 00:45:15]} {[%emt 00:02:36]} 15. Rxe5 {[%clk 01:19:22]} {[%emt
00:00:07]} Bf6 {[%clk 00:45:03]} {[%emt 00:00:42]} 16. Rxe8+ {[%clk 01:16:41]}
{[%emt 00:03:11]} Qxe8 {[%clk 00:45:16]} {[%emt 00:00:16]} 17. Qf3 {[%clk
01:16:55]} {[%emt 00:00:16]} Qd8 {[%clk 00:44:22]} {[%emt 00:01:23]} 18. Re1
{[%clk 01:12:03]} {[%emt 00:05:22]} c6 {[%clk 00:42:48]} {[%emt 00:02:05]} 19.
Ba5 {[%clk 01:07:29]} {[%emt 00:05:04]} Qd6 {[%clk 00:29:07]} {[%emt 00:14:09]}
20. c5 {[%clk 01:03:53]} {[%emt 00:04:07]} Qb8 {[%clk 00:28:29]} {[%emt
00:01:08]} 21. Re8+ {[%clk 01:00:04]} {[%emt 00:04:19]} Kg7 {[%clk 00:28:50]}
{[%emt 00:00:08]} 22. Bh3 {[%clk 00:59:38]} {[%emt 00:00:57]} Bxh3 {[%clk
00:27:41]} {[%emt 00:01:37]} 23. Rxb8 {[%clk 01:00:00]} {[%emt 00:00:09]} Rxb8
{[%clk 00:28:07]} {[%emt 00:00:04]} 24. g4 {[%clk 01:00:22]} {[%emt 00:00:08]}
Bxg4 {[%clk 00:27:53]} {[%emt 00:00:43]} 25. Qxg4 {[%clk 01:00:44]} {[%emt
00:00:08]} b6 {[%clk 00:28:14]} {[%emt 00:00:09]} 26. Bd2 {[%clk 00:58:19]}
{[%emt 00:02:55]} Rd8 {[%clk 00:27:58]} {[%emt 00:00:46]} 27. Bg5 {[%clk
00:53:50]} {[%emt 00:04:59]} Bxg5 {[%clk 00:26:54]} {[%emt 00:01:34]} 28. Qxg5
{[%clk 00:54:15]} {[%emt 00:00:05]} Rd5 {[%clk 00:26:23]} {[%emt 00:01:01]} 29.
Qh4 {[%clk 00:48:20]} {[%emt 00:06:25]} bxc5 {[%clk 00:26:12]} {[%emt
00:00:41]} 30. Qe7 {[%clk 00:47:37]} {[%emt 00:01:12]} Nf4 {[%clk 00:25:53]}
{[%emt 00:00:48]} 31. Nxc5 {[%clk 00:47:20]} {[%emt 00:00:48]} h5 {[%clk
00:24:20]} {[%emt 00:02:03]} 32. b4 {[%clk 00:44:46]} {[%emt 00:03:04]} Rg5+
{[%clk 00:23:33]} {[%emt 00:01:17]} 33. Kf1 {[%clk 00:45:00]} {[%emt 00:00:16]}
Nh3 {[%clk 00:23:57]} {[%emt 00:00:05]} 34. Ne6+ {[%clk 00:45:05]} {[%emt
00:00:25]} 1-0

[Event "Chess Festival Groningen 2023 | A"]
[Site "Groningen, Netherlands"]
[Date "2023.12.24"]
[Round "4.6"]
[White "Beerdsen, Thomas"]
[Black "Stremavicius, Pijus"]
[Result "1/2-1/2"]
[TimeControl "90min/40moves + 30min + 30sec/move"]
[WhiteElo "2511"]
[BlackElo "2367"]

1. e4 {[%clk 01:30:57]} {[%emt 00:00:02]} c5 {[%clk 01:30:52]} {[%emt
00:00:09]} 2. Nf3 {[%clk 01:31:19]} {[%emt 00:00:06]} e6 {[%clk 01:31:20]}
{[%emt 00:00:03]} 3. d4 {[%clk 01:31:12]} {[%emt 00:00:37]} cxd4 {[%clk
01:31:47]} {[%emt 00:00:04]} 4. Nxd4 {[%clk 01:31:35]} {[%emt 00:00:06]} Nf6
{[%clk 01:32:15]} {[%emt 00:00:02]} 5. Nc3 {[%clk 01:30:43]} {[%emt 00:01:22]}
Nc6 {[%clk 01:32:41]} {[%emt 00:00:04]} 6. Be2 {[%clk 01:30:58]} {[%emt
00:00:14]} Bb4 {[%clk 01:33:07]} {[%emt 00:00:05]} 7. O-O {[%clk 01:31:10]}
{[%emt 00:00:17]} Bxc3 {[%clk 01:33:35]} {[%emt 00:00:02]} 8. bxc3 {[%clk
01:31:33]} {[%emt 00:00:07]} Nxe4 {[%clk 01:34:03]} {[%emt 00:00:03]} 9. Nxc6
{[%clk 01:31:17]} {[%emt 00:00:45]} dxc6 {[%clk 01:34:29]} {[%emt 00:00:05]} 10.
Bd3 {[%clk 01:31:34]} {[%emt 00:00:12]} Nc5 {[%clk 01:34:55]} {[%emt 00:00:04]}
11. Qg4 {[%clk 01:31:33]} {[%emt 00:00:29]} Qf6 {[%clk 01:35:21]} {[%emt
00:00:04]} 12. Bg5 {[%clk 01:31:40]} {[%emt 00:00:23]} Qxc3 {[%clk 01:35:47]}
{[%emt 00:00:05]} 13. Qg3 {[%clk 01:31:50]} {[%emt 00:00:20]} h6 {[%clk
01:36:14]} {[%emt 00:00:04]} 14. Bf4 {[%clk 01:31:54]} {[%emt 00:00:25]} Nxd3
{[%clk 01:36:41]} {[%emt 00:00:04]} 15. cxd3 {[%clk 01:32:10]} {[%emt
00:00:13]} Qf6 {[%clk 01:37:02]} {[%emt 00:00:09]} 16. Be5 {[%clk 01:32:14]}
{[%emt 00:00:25]} Qg5 {[%clk 01:37:14]} {[%emt 00:00:18]} 17. Bxg7 {[%clk
01:31:37]} {[%emt 00:01:07]} Rg8 {[%clk 01:35:51]} {[%emt 00:01:53]} 18. Bxh6
{[%clk 01:31:36]} {[%emt 00:00:31]} Qxg3 {[%clk 01:36:16]} {[%emt 00:00:05]} 19.
fxg3 {[%clk 01:31:59]} {[%emt 00:00:06]} e5 {[%clk 01:36:42]} {[%emt 00:00:05]}
20. Rae1 {[%clk 01:23:28]} {[%emt 00:09:01]} Be6 {[%clk 01:36:48]} {[%emt
00:00:24]} 21. Rxe5 {[%clk 01:23:41]} {[%emt 00:00:17]} O-O-O {[%clk 01:37:11]}
{[%emt 00:00:08]} 22. Rd1 {[%clk 01:11:59]} {[%emt 00:12:11]} b6 {[%clk
01:16:35]} {[%emt 00:21:06]} 23. Bf4 {[%clk 00:56:16]} {[%emt 00:16:12]} Rd4
{[%clk 01:15:26]} {[%emt 00:01:41]} 24. h4 {[%clk 00:51:28]} {[%emt 00:05:17]}
c5 {[%clk 01:15:48]} {[%emt 00:00:09]} 25. h5 {[%clk 00:36:07]} {[%emt
00:15:50]} c4 {[%clk 01:12:22]} {[%emt 00:03:57]} 26. h6 {[%clk 00:30:31]}
{[%emt 00:06:05]} Rxd3 {[%clk 01:12:05]} {[%emt 00:00:48]} 27. Rxd3 {[%clk
00:23:23]} {[%emt 00:07:37]} cxd3 {[%clk 01:12:15]} {[%emt 00:00:20]} 28. Kf2
{[%clk 00:18:50]} {[%emt 00:05:02]} Kd7 {[%clk 01:11:46]} {[%emt 00:01:00]} 29.
Ke3 {[%emt 00:11:54]} 1/2-1/2

[Event "Chess Festival Groningen 2023 | A"]
[Site "Groningen, Netherlands"]
[Date "2023.12.24"]
[Round "4.7"]
[White "Kanov, Nikola"]
[Black "Kovchan, Alexander"]
[Result "1-0"]
[TimeControl "90min/40moves + 30min + 30sec/move"]
[WhiteElo "2371"]
[BlackElo "2491"]

1. e4 {[%clk 01:30:57]} {[%emt 00:00:02]} c5 {[%clk 01:30:43]} {[%emt
00:00:17]} 2. Nf3 {[%clk 01:31:20]} {[%emt 00:00:07]} d6 {[%clk 01:31:06]}
{[%emt 00:00:07]} 3. d4 {[%clk 01:31:42]} {[%emt 00:00:08]} cxd4 {[%clk
01:31:26]} {[%emt 00:00:10]} 4. Nxd4 {[%clk 01:32:05]} {[%emt 00:00:08]} Nf6
{[%clk 01:31:48]} {[%emt 00:00:08]} 5. Nc3 {[%clk 01:32:26]} {[%emt 00:00:09]}
a6 {[%clk 01:32:11]} {[%emt 00:00:06]} 6. Be3 {[%clk 01:32:37]} {[%emt
00:00:19]} e5 {[%clk 01:31:37]} {[%emt 00:01:04]} 7. Nb3 {[%clk 01:32:02]}
{[%emt 00:01:05]} Be6 {[%clk 01:31:38]} {[%emt 00:00:29]} 8. h3 {[%clk
01:32:06]} {[%emt 00:00:26]} Nbd7 {[%clk 01:31:25]} {[%emt 00:00:43]} 9. Qd3
{[%clk 01:32:09]} {[%emt 00:00:27]} Nc5 {[%clk 01:30:07]} {[%emt 00:01:49]} 10.
Nxc5 {[%clk 01:31:35]} {[%emt 00:01:04]} dxc5 {[%clk 01:30:28]} {[%emt
00:00:08]} 11. Qxd8+ {[%clk 01:32:01]} {[%emt 00:00:04]} Rxd8 {[%clk 01:30:40]}
{[%emt 00:00:18]} 12. g3 {[%clk 01:32:27]} {[%emt 00:00:04]} c4 {[%clk
01:28:52]} {[%emt 00:02:19]} 13. Bg2 {[%clk 01:30:50]} {[%emt 00:02:06]} Bb4
{[%clk 01:24:34]} {[%emt 00:04:48]} 14. O-O {[%clk 01:25:51]} {[%emt 00:05:30]}
Bxc3 {[%clk 01:16:32]} {[%emt 00:08:32]} 15. bxc3 {[%clk 01:26:14]} {[%emt
00:00:07]} Bd7 {[%clk 01:16:46]} {[%emt 00:00:16]} 16. Rab1 {[%clk 00:56:09]}
{[%emt 00:30:35]} Bc6 {[%clk 01:14:00]} {[%emt 00:03:15]} 17. f3 {[%clk
00:56:31]} {[%emt 00:00:08]} O-O {[%clk 01:00:17]} {[%emt 00:14:12]} 18. h4
{[%clk 00:53:24]} {[%emt 00:03:37]} Rfe8 {[%clk 00:48:50]} {[%emt 00:11:57]} 19.
Bh3 {[%clk 00:50:12]} {[%emt 00:03:42]} Rd6 {[%clk 00:43:11]} {[%emt 00:06:09]}
20. Kf2 {[%clk 00:46:16]} {[%emt 00:04:25]} b5 {[%clk 00:40:29]} {[%emt
00:03:13]} 21. Ke2 {[%clk 00:43:36]} {[%emt 00:03:10]} Bxe4 {[%clk 00:38:10]}
{[%emt 00:02:49]} 22. fxe4 {[%clk 00:43:25]} {[%emt 00:00:41]} Nxe4 {[%clk
00:38:34]} {[%emt 00:00:06]} 23. Kf3 {[%clk 00:41:11]} {[%emt 00:02:44]} Nxc3
{[%clk 00:38:57]} {[%emt 00:00:07]} 24. Ra1 {[%clk 00:39:19]} {[%emt 00:02:23]}
g6 {[%clk 00:34:38]} {[%emt 00:04:49]} 25. Rfe1 {[%clk 00:35:51]} {[%emt
00:03:58]} f5 {[%clk 00:34:39]} {[%emt 00:00:29]} 26. Bf1 {[%clk 00:35:20]}
{[%emt 00:01:01]} Rc8 {[%clk 00:32:28]} {[%emt 00:02:42]} 27. Bc1 {[%clk
00:29:38]} {[%emt 00:06:12]} e4+ {[%clk 00:31:48]} {[%emt 00:01:10]} 28. Kf2
{[%clk 00:29:16]} {[%emt 00:00:52]} a5 {[%clk 00:29:16]} {[%emt 00:03:02]} 29.
a3 {[%clk 00:25:52]} {[%emt 00:03:55]} Kf7 {[%clk 00:27:00]} {[%emt 00:02:46]}
30. Bf4 {[%clk 00:24:03]} {[%emt 00:02:19]} Rd5 {[%clk 00:27:10]} {[%emt
00:00:20]} 31. Be2 {[%clk 00:22:22]} {[%emt 00:02:11]} h5 {[%clk 00:26:53]}
{[%emt 00:00:47]} 32. Rec1 {[%clk 00:21:46]} {[%emt 00:01:06]} a4 {[%clk
00:18:56]} {[%emt 00:08:27]} 33. Ke1 {[%clk 00:19:50]} {[%emt 00:02:26]} Rcd8
{[%clk 00:17:25]} {[%emt 00:02:01]} 34. Be3 {[%clk 00:14:44]} {[%emt 00:05:36]}
Ke6 {[%clk 00:17:05]} {[%emt 00:00:49]} 35. Kf2 {[%clk 00:12:04]} {[%emt
00:03:10]} Kd7 {[%clk 00:09:03]} {[%emt 00:08:32]} 36. Re1 {[%clk 00:11:37]}
{[%emt 00:00:57]} Kc6 {[%clk 00:09:18]} {[%emt 00:00:15]} 37. Bc1 {[%clk
00:10:35]} {[%emt 00:01:32]} Re8 {[%clk 00:07:07]} {[%emt 00:02:40]} 38. Bb2
{[%clk 00:06:17]} {[%emt 00:04:48]} e3+ {[%clk 00:07:18]} {[%emt 00:00:20]} 39.
Kg1 {[%clk 00:05:18]} {[%emt 00:01:29]} Ne4 {[%clk 00:06:55]} {[%emt 00:00:53]}
40. Bf3 {[%clk 00:05:13]} {[%emt 00:00:35]} c3 {[%clk 00:01:56]} {[%emt
00:05:29]} 41. Bxe4 {[%clk 00:21:29]} {[%emt 00:14:14]} Rxe4 {[%clk 00:30:17]}
{[%emt 00:02:09]} 42. Bxc3 {[%clk 00:21:45]} {[%emt 00:00:14]} Rc5 {[%clk
00:16:01]} {[%emt 00:14:45]} 43. Bf6 {[%clk 00:18:30]} {[%emt 00:03:46]} f4
{[%clk 00:12:28]} {[%emt 00:04:03]} 44. gxf4 {[%clk 00:14:51]} {[%emt
00:04:09]} Rxf4 {[%clk 00:12:51]} {[%emt 00:00:07]} 45. Bg5 {[%clk 00:15:16]}
{[%emt 00:00:05]} Rg4+ {[%clk 00:12:58]} {[%emt 00:00:23]} 46. Kf1 {[%clk
00:13:39]} {[%emt 00:02:07]} Rc3 {[%clk 00:11:17]} {[%emt 00:02:11]} 47. Rxe3
{[%clk 00:11:35]} {[%emt 00:02:34]} Rxc2 {[%clk 00:10:56]} {[%emt 00:00:52]} 48.
Rd1 {[%clk 00:07:00]} {[%emt 00:05:04]} b4 {[%clk 00:08:29]} {[%emt 00:02:57]}
49. axb4 {[%clk 00:06:38]} {[%emt 00:00:52]} Rxb4 {[%clk 00:08:58]} {[%emt
00:00:01]} 50. Re6+ {[%clk 00:06:03]} {[%emt 00:01:05]} Kb5 {[%clk 00:09:19]}
{[%emt 00:00:09]} 51. Re5+ {[%clk 00:05:50]} {[%emt 00:00:43]} Kc6 {[%clk
00:08:54]} {[%emt 00:00:54]} 52. Re8 {[%clk 00:04:13]} {[%emt 00:02:07]} Rbb2
{[%clk 00:07:06]} {[%emt 00:02:18]} 53. Rc8+ {[%clk 00:02:32]} {[%emt
00:02:11]} Kb5 {[%clk 00:07:34]} {[%emt 00:00:01]} 54. Rd5+ {[%clk 00:02:24]}
{[%emt 00:00:38]} Ka6 {[%clk 00:07:11]} {[%emt 00:00:54]} 55. Rxc2 {[%clk
00:00:35]} Rxc2 {[%clk 00:07:40]} {[%emt 00:02:20]} 56. Bd8 {[%clk 00:00:41]}
{[%emt 00:00:24]} Kb7 {[%clk 00:06:52]} {[%emt 00:01:18]} 57. Ra5 {[%clk
00:00:42]} {[%emt 00:00:29]} Ra2 {[%clk 00:07:00]} {[%emt 00:00:21]} 58. Ke1
{[%clk 00:00:38]} {[%emt 00:00:34]} Kc6 {[%clk 00:05:09]} {[%emt 00:02:21]} 59.
Kd1 {[%clk 00:00:45]} {[%emt 00:00:23]} Kd7 {[%clk 00:02:10]} {[%emt 00:03:29]}
60. Bg5 {[%clk 00:01:07]} {[%emt 00:00:08]} Ke6 {[%clk 00:02:26]} {[%emt
00:00:14]} 61. Kc1 {[%clk 00:00:50]} {[%emt 00:00:47]} a3 {[%clk 00:02:33]}
{[%emt 00:00:24]} 62. Kb1 {[%clk 00:00:37]} {[%emt 00:00:42]} Rb2+ {[%clk
00:02:47]} {[%emt 00:00:16]} 63. Ka1 {[%clk 00:00:56]} {[%emt 00:00:11]} Rg2
{[%clk 00:01:44]} {[%emt 00:01:34]} 64. Ra6+ {[%clk 00:01:09]} {[%emt
00:00:17]} Kf5 {[%clk 00:01:20]} {[%emt 00:00:54]} 65. Rf6+ {[%clk 00:01:34]}
{[%emt 00:00:05]} Ke4 {[%clk 00:00:58]} {[%emt 00:00:53]} 66. Rxg6 {[%clk
00:01:46]} {[%emt 00:00:18]} Rb2 {[%clk 00:01:01]} {[%emt 00:00:27]} 67. Rh6
{[%clk 00:01:20]} {[%emt 00:00:55]} Kd3 {[%clk 00:01:13]} {[%emt 00:00:18]} 68.
Rxh5 {[%clk 00:01:28]} {[%emt 00:00:23]} Kc2 {[%clk 00:01:22]} {[%emt
00:00:20]} 69. Be7 {[%clk 00:01:11]} {[%emt 00:00:46]} Kb3 {[%clk 00:00:45]}
{[%emt 00:01:07]} 70. Rb5+ {[%clk 00:01:21]} {[%emt 00:00:20]} Kc2 {[%clk
00:01:14]} {[%emt 00:00:01]} 71. Ra5 {[%clk 00:01:15]} {[%emt 00:00:37]} Rb7
{[%clk 00:01:23]} {[%emt 00:00:21]} 72. Bxa3 {[%clk 00:01:27]} {[%emt
00:00:18]} Rh7 {[%clk 00:01:43]} {[%emt 00:00:10]} 73. h5 {[%clk 00:01:37]}
{[%emt 00:00:20]} Rd7 {[%clk 00:01:54]} {[%emt 00:00:19]} 74. h6 {[%clk
00:01:23]} {[%emt 00:00:44]} Rd1+ {[%clk 00:01:47]} {[%emt 00:00:38]} 75. Ka2
{[%clk 00:01:48]} {[%emt 00:00:05]} Rh1 {[%clk 00:02:11]} {[%emt 00:00:05]} 76.
Rc5 {[%clk 00:01:49]} {[%emt 00:00:30]} Kd3 {[%clk 00:02:37]} {[%emt 00:00:05]}
77. Rc6 {[%clk 00:02:06]} {[%emt 00:00:12]} Ke4 {[%clk 00:03:01]} {[%emt
00:00:06]} 78. Kb3 {[%clk 00:01:52]} {[%emt 00:00:44]} Kf5 {[%clk 00:03:26]}
{[%emt 00:00:06]} 79. Bc1 {[%clk 00:01:51]} {[%emt 00:00:31]} Rh4 {[%clk
00:03:42]} {[%emt 00:00:13]} 80. Kc2 {[%clk 00:01:45]} {[%emt 00:00:36]} Ra4
{[%clk 00:03:53]} {[%emt 00:00:19]} 81. h7 {[%clk 00:01:56]} {[%emt 00:00:20]}
1-0